bitfinex/quotes_SOLUSD_20240612
["timestamp","ask_amount","ask_price","bid_price","bid_amount"]
[1718188621206,2.4175,153.05,153.02,2.4179]
[1718188621385,8.23,153.03,153.01,2.418]
[1718188623279,2.4174,153.06,153.0,12.0913]
[1718188623515,8.23,153.05,153.0,12.0913]
[1718188623797,8.23,153.05,153.02,2.4178]
[1718188623980,8.23,153.04,153.02,2.4178]
[1718188624383,2.4175,153.05,153.02,2.4178]
[1718188624606,8.23,153.04,153.0,4.8365]
[1718188624984,2.4174,153.06,153.02,2.4179]
[1718188625191,8.23,153.04,153.02,2.4179]
[1718188625590,10.6475,153.05,153.01,2.4181]
[1718188626299,5.87465,153.09,153.03,2.4177]
[1718188626589,10.6473,153.07,153.03,2.4177]
[1718188627479,8.23,153.04,153.02,15.6051]
[1718188627731,8.23,153.03,152.99,2.4183]
[1718188628004,12.0877,153.05,152.98,15.1166]
[1718188628005,10.648,153.02,152.98,17.5351]
[1718188628207,10.648,153.02,152.99,2.4184]
[1718188628703,8.23,153.02,152.99,2.4184]
[1718188629710,10.6482,153.01,152.97,2.4186]
[1718188629912,8.23,152.98,152.94,16.4093]
[1718188630120,8.23,152.98,152.94,18.8285]
[1718188630121,8.23,152.97,152.94,18.8285]
[1718188630414,8.23,152.97,152.94,16.4093]
[1718188630716,8.23,152.97,152.96,2.4189]
[1718188631707,8.23,152.97,152.95,2.4189]
[1718188633298,8.23,152.97,152.96,2.4189]
[1718188634011,112.2602,153.02,152.95,4.8381]
[1718188634012,0.17,153.02,152.95,4.8381]
[1718188634197,15.6168,153.06,153.01,2.4181]
[1718188634386,8.23,153.02,153.0,2.4182]
[1718188634716,8.23,153.01,152.98,2.4185]
[1718188634890,8.23,153.01,153.0,2.4183]
[1718188635902,8.23,153.01,152.99,2.4183]
[1718188636103,8.23,153.01,153.0,2.4183]
[1718188636333,8.23,153.02,153.0,2.4183]
[1718188636489,8.23,153.01,153.0,2.4183]
[1718188636689,37.3733,153.06,153.0,1.90868205]
[1718188636690,2.4177,153.04,153.0,1.90868205]
[1718188636917,2.4175,153.05,153.01,2.418]
[1718188637115,2.4176,153.05,153.01,2.418]
[1718188637421,8.23,153.03,153.01,2.418]
[1718188637992,8.23,153.03,153.0,2.4181]
[1718188638517,8.23,153.02,153.0,2.4181]
[1718188638900,8.23,153.02,152.99,2.4183]
[1718188639206,2.4178,153.03,152.99,2.4183]
[1718188639207,8.23,153.01,152.99,2.4183]
[1718188639403,8.23,153.01,153.0,2.4183]
[1718188639721,6.541,153.07,152.97,8.23]
[1718188639903,8.23,153.01,152.98,2.4185]
[1718188640511,8.23,153.01,152.99,2.4183]
[1718188640919,8.23,153.01,152.97,32.0938]
[1718188641125,8.23,153.01,152.97,24.8375]
[1718188641322,8.23,153.02,153.01,2.418]
[1718188641497,8.23,153.02,153.0,2.4181]
[1718188642197,6.541,153.07,153.0,4.8365]
[1718188642403,6.541,153.07,153.02,2.4178]
[1718188642622,8.23,153.03,153.01,2.418]
[1718188642809,8.23,153.02,153.01,2.418]
[1718188643828,2.4176,153.05,153.01,2.418]
[1718188644127,8.23,153.02,153.01,2.418]
[1718188644507,8.23,153.02,153.0,2.4182]
[1718188644926,8.23,153.02,153.01,2.4181]
[1718188645422,8.23,153.02,153.0,2.4182]
[1718188645629,8.23,153.01,153.0,2.4182]
[1718188646013,2.4177,153.04,153.01,2.4181]
[1718188646222,8.23,153.02,153.01,2.4181]
[1718188648738,8.23,153.02,153.0,2.4181]
[1718188649035,8.23,153.02,153.01,2.4181]
[1718188651116,8.23,153.02,152.97,20.0]
[1718188651308,8.23,153.01,152.99,2.4183]
[1718188651629,2.4176,153.05,153.01,2.418]
[1718188651828,8.23,153.02,152.99,16.9288]
[1718188652007,8.23,153.02,153.01,2.418]
[1718188654706,8.23,153.02,153.0,2.4182]
[1718188654909,8.23,153.01,153.0,2.4182]
[1718188655136,8.23,153.01,152.94,23.667]
[1718188655313,2.4179,153.03,152.99,2.4184]
[1718188655516,8.23,153.0,152.99,2.4184]
[1718188662767,35.3378,153.04,153.01,2.4181]
[1718188662925,8.23,153.02,153.01,2.4181]
[1718188664239,102.7576,153.05,153.01,2.4181]
[1718188664420,8.23,153.02,153.01,2.4181]
[1718188665238,0.17,153.04,153.01,2.4181]
[1718188665543,8.23,153.02,153.01,2.4181]
[1718188666323,0.17,153.06,153.01,4.8362]
[1718188666523,8.23,153.02,153.01,7.2543]
[1718188667832,8.9582,153.07,153.03,2.4177]
[1718188668024,8.23,153.04,153.03,2.4177]
[1718188668239,8.23,153.04,153.02,2.4178]
[1718188668553,8.23,153.03,153.02,2.4178]
[1718188669734,2.418,153.02,152.87,29.64]
[1718188669942,32.92,153.04,153.0,2.4182]
[1718188670140,8.23,153.01,152.97,12.0936]
[1718188670349,35.3377,153.04,153.0,2.4182]
[1718188670554,8.23,153.01,153.0,2.4182]
[1718188671153,8.23,153.01,152.99,2.4183]
[1718188671338,8.23,153.0,152.99,2.4183]
[1718188672933,8.23,153.0,152.98,2.4185]
[1718188673140,8.23,152.99,152.98,2.4186]
[1718188674541,8.23,152.99,152.97,2.4186]
[1718188674742,8.23,152.99,152.98,2.4186]
[1718188676140,8.23,153.0,152.99,2.4184]
[1718188676833,8.23,153.0,152.98,2.4185]
[1718188682340,8.23,153.0,152.99,2.4184]
[1718188682847,8.23,153.0,152.97,4.8375]
[1718188683045,8.23,153.0,152.99,2.4184]
[1718188683370,8.23,153.02,153.0,2.4182]
[1718188683866,8.23,153.02,153.0,2.4181]
[1718188684058,8.23,153.02,153.01,2.4181]
[1718188684267,8.23,153.02,153.0,2.4182]
[1718188684468,8.23,153.01,153.0,2.4182]
[1718188686553,8.23,153.01,152.99,2.4183]
[1718188686752,8.23,153.0,152.99,2.4183]
[1718188686954,8.23,153.0,152.97,12.0935]
[1718188686955,8.23,153.0,152.97,2.4186]
[1718188687157,10.6487,152.98,152.94,16.4093]
[1718188687377,8.23,152.97,152.95,2.419]
[1718188687550,8.23,152.97,152.93,4.8387]
[1718188687748,8.23,152.96,152.95,2.4189]
[1718188688176,8.23,152.97,152.96,2.4189]
[1718188688375,8.23,152.97,152.93,14.5163]
[1718188688561,8.23,152.96,152.93,2.4192]
[1718188688762,8.23,152.96,152.9,41.2843]
[1718188688763,8.23,152.94,152.92,2.4195]
[1718188689068,8.23,152.94,152.91,2.4196]
[1718188689448,8.23,152.94,152.92,2.4195]
[1718188690671,2.4188,152.97,152.9,16.1158]
[1718188690869,2.4183,153.0,152.94,12.0961]
[1718188691077,8.23,152.97,152.96,2.4188]
[1718188691277,8.5224,153.01,152.96,2.4188]
[1718188691464,8.23,152.98,152.96,2.4188]
[1718188691662,8.23,152.97,152.96,2.4188]
[1718188692682,8.23,152.97,152.95,2.419]
[1718188693174,8.23,152.97,152.96,2.4189]
[1718188694282,8.23,152.97,152.95,2.4189]
[1718188694774,8.23,152.96,152.93,2.4193]
[1718188695854,8.23,152.96,152.9,23.3754]
[1718188695855,10.649,152.96,152.92,2.4195]
[1718188696060,8.23,152.95,152.93,2.4193]
[1718188697172,8.23,152.95,152.94,2.4192]
[1718188697567,8.23,152.95,152.93,2.4193]
[1718188698382,8.23,152.95,152.94,2.4192]
[1718188699374,8.23,152.96,152.94,2.4192]
[1718188702680,8.23,152.96,152.93,2.4193]
[1718188702982,8.23,152.94,152.92,2.4195]
[1718188703574,8.23,152.93,152.92,2.4195]
[1718188703772,8.23,152.93,152.88,4.8401]
[1718188703974,8.23,152.92,152.91,2.4197]
[1718188704569,8.23,152.93,152.91,2.4197]
[1718188705890,8.23,152.93,152.9,2.4197]
[1718188706993,8.23,152.93,152.91,2.4197]
[1718188707190,8.23,152.92,152.91,2.4197]
[1718188707665,8.23,152.92,152.86,9.6818]
[1718188707870,8.23,152.91,152.89,2.4199]
[1718188708084,8.23,152.9,152.89,2.4199]
[1718188709489,8.23,152.9,152.87,4.8407]
[1718188709687,8.23,152.88,152.85,12.1027]
[1718188709976,8.23,152.88,152.84,26.0706]
[1718188709977,8.23,152.88,152.86,2.4204]
[1718188710294,8.23,152.88,152.85,12.1031]
[1718188710467,8.23,152.88,152.87,2.4203]
[1718188710666,2.5896,152.92,152.88,2.4201]
[1718188710866,8.23,152.89,152.88,2.4201]
[1718188711072,8.23,152.89,152.87,2.4203]
[1718188711272,8.23,152.88,152.86,2.4204]
[1718188711478,8.23,152.87,152.84,2.4207]
[1718188711779,8.23,152.87,152.85,2.4206]
[1718188712490,0.17,152.92,152.82,15.171]
[1718188712670,2.4196,152.92,152.88,2.42]
[1718188712993,8.23,152.9,152.88,2.42]
[1718188713175,2.4196,152.92,152.86,21.7844]
[1718188713373,8.23,152.9,152.89,2.42]
[1718188713683,8.23,152.91,152.89,2.42]
[1718188713872,8.23,152.91,152.88,2.4201]
[1718188715004,8.23,152.91,152.85,8.23]
[1718188715005,17.909,152.91,152.85,8.23]
[1718188715194,17.909,152.91,152.83,4.8419]
[1718188715195,10.6502,152.88,152.83,4.8419]
[1718188715375,8.23,152.88,152.85,2.4205]
[1718188715778,8.23,152.88,152.86,2.4205]
[1718188715976,2.4199,152.9,152.86,2.4205]
[1718188716189,8.23,152.89,152.87,2.4203]
[1718188716604,8.23,152.89,152.86,2.4204]
[1718188716894,8.23,152.89,152.87,2.4203]
[1718188717106,8.23,152.89,152.86,2.4204]
[1718188719391,10.6502,152.88,152.84,2.4207]
[1718188719689,10.6502,152.88,152.81,16.9486]
[1718188719690,10.6504,152.87,152.83,2.4209]
[1718188720098,2.7601,152.89,152.85,2.4206]
[1718188720307,8.23,152.87,152.84,2.4207]
[1718188721408,22.2666,152.9,152.83,7.2628]
[1718188721589,2.4199,152.9,152.86,2.4204]
[1718188721909,8.23,152.89,152.86,2.4204]
[1718188722108,0.17,152.92,152.85,7.2618]
[1718188722287,24.3364,152.94,152.9,2.4197]
[1718188722486,2.4194,152.93,152.89,2.4199]
[1718188722815,8.23,152.92,152.9,2.4198]
[1718188723008,8.23,152.93,152.88,12.1007]
[1718188723195,17.8656,152.94,152.9,2.4197]
[1718188723399,10.6494,152.93,152.89,2.4199]
[1718188723599,8.23,152.92,152.89,2.4199]
[1718188724000,10.6495,152.92,152.88,2.4201]
[1718188724590,0.17,152.93,152.84,4.8414]
[1718188724802,0.17,152.93,152.86,2.4204]
[1718188724803,10.6499,152.9,152.86,2.4204]
[1718188724986,10.6499,152.9,152.85,2.4205]
[1718188724987,2.42,152.89,152.85,2.4205]
[1718188725386,8.23,152.89,152.85,2.4205]
[1718188725609,8.23,152.89,152.86,2.4205]
[1718188725802,8.23,152.89,152.85,2.4205]
[1718188726013,8.23,152.88,152.85,2.4205]
[1718188727690,10.6502,152.88,152.84,2.4207]
[1718188728006,10.6502,152.88,152.83,20.8802]
[1718188728007,8.23,152.88,152.85,2.4206]
[1718188729113,8.23,152.89,152.87,2.4203]
[1718188729522,2.4196,152.92,152.88,2.4201]
[1718188730018,10.6501,152.89,152.85,2.4206]
[1718188730400,0.17,152.94,152.81,0.17]
[1718188730607,10.6495,152.92,152.88,2.42]
[1718188731008,10.6497,152.91,152.88,2.42]
[1718188731203,10.6497,152.91,152.87,2.4202]
[1718188731701,10.6497,152.91,152.88,2.4201]
[1718188732847,8.23,152.91,152.88,2.4201]
[1718188733320,2.4203,152.87,152.84,2.4207]
[1718188733503,10.6505,152.86,152.83,2.4209]
[1718188733830,8.23,152.86,152.83,2.4209]
[1718188734517,4.8404,152.88,152.8,33.512]
[1718188734518,2.4207,152.85,152.8,2.4213]
[1718188734723,2.421,152.83,152.79,2.4215]
[1718188734912,10.651,152.83,152.79,2.4215]
[1718188735229,0.34,152.85,152.76,16.1255]
[1718188735402,8.23,152.82,152.77,13.0738]
[1718188735600,8.23,152.82,152.79,2.4215]
[1718188736101,8.23,152.83,152.8,2.4214]
[1718188736301,2.4209,152.84,152.8,2.4214]
[1718188736505,8.23,152.83,152.8,2.4214]
[1718188737119,8.23,152.83,152.79,2.4215]
[1718188737806,10.651,152.83,152.79,2.4215]
[1718188740921,2.4211,152.82,152.78,2.4216]
[1718188742335,10.651,152.83,152.77,20.3396]
[1718188742523,10.651,152.83,152.78,8.23]
[1718188742711,2.4207,152.85,152.81,2.4212]
[1718188742917,10.6507,152.85,152.81,2.4212]
[1718188743118,2.4207,152.85,152.81,2.4212]
[1718188744134,2.4207,152.85,152.82,2.4211]
[1718188744341,10.6505,152.86,152.83,2.4209]
[1718188744629,2.4204,152.87,152.83,2.4209]
[1718188744815,8.23,152.87,152.83,2.4209]
[1718188745430,22.7514,152.88,152.83,2.4209]
[1718188745638,2.4203,152.87,152.84,2.4208]
[1718188746020,10.6502,152.88,152.84,2.4208]
[1718188746543,2.4196,152.92,152.86,13.0709]
[1718188746723,2.4192,152.94,152.9,2.4197]
[1718188746923,10.6492,152.94,152.9,2.4197]
[1718188747123,2.4194,152.93,152.9,2.4197]
[1718188747331,2.4194,152.93,152.88,8.23]
[1718188747537,2.4194,152.93,152.89,2.4199]
[1718188747934,10.6494,152.93,152.89,2.4199]
[1718188748543,2.4192,152.94,152.88,13.0702]
[1718188748723,10.6492,152.94,152.88,13.0702]
[1718188748924,10.6492,152.94,152.9,2.4197]
[1718188749130,2.4192,152.94,152.88,13.0702]
[1718188749331,10.6492,152.94,152.9,2.4198]
[1718188749549,2.4196,152.92,152.86,16.9428]
[1718188749735,2.4196,152.92,152.87,8.23]
[1718188750030,2.4196,152.92,152.88,8.23]
[1718188750242,2.4196,152.92,152.89,2.4199]
[1718188750535,10.6494,152.93,152.9,2.4198]
[1718188750722,8.23,152.93,152.9,2.4198]
[1718188750924,2.4193,152.94,152.9,2.4198]
[1718188751122,2.4193,152.94,152.91,2.4196]
[1718188751336,2.4191,152.95,152.92,2.4195]
[1718188751629,10.6491,152.95,152.92,2.4195]
[1718188751829,2.4191,152.95,152.92,2.4195]
[1718188752238,10.6491,152.95,152.92,2.4195]
[1718188752440,2.4191,152.95,152.92,2.4195]
[1718188752643,10.6491,152.95,152.92,2.4195]
[1718188752877,10.6491,152.95,152.88,7.2605]
[1718188752878,8.23,152.94,152.9,2.4198]
[1718188753022,8.23,152.93,152.9,2.4198]
[1718188753228,10.6493,152.94,152.91,2.4197]
[1718188753534,2.4194,152.93,152.9,2.4198]
[1718188753945,10.6493,152.94,152.9,2.4198]
[1718188754243,2.4194,152.93,152.9,2.4198]
[1718188754445,10.6493,152.94,152.9,2.4198]
[1718188755245,2.4194,152.93,152.9,2.4198]
[1718188756233,10.6493,152.94,152.9,2.4198]
[1718188756433,2.4191,152.95,152.92,2.4194]
[1718188756752,10.6492,152.94,152.91,2.4196]
[1718188760438,8.23,152.94,152.92,2.4195]
[1718188760656,10.649,152.95,152.92,2.4195]
[1718188761357,2.419,152.95,152.92,2.4195]
[1718188761538,8.23,152.94,152.92,2.4195]
[1718188762352,2.419,152.95,152.92,2.4195]
[1718188762546,8.23,152.94,152.92,2.4195]
[1718188763455,2.419,152.95,152.93,2.4193]
[1718188763456,8.23,152.95,152.93,2.4193]
[1718188763758,8.23,152.95,152.92,2.4194]
[1718188764056,10.6491,152.95,152.92,2.4194]
[1718188764242,10.6491,152.95,152.92,2.4195]
[1718188764444,10.6491,152.95,152.9,4.8396]
[1718188764644,2.4195,152.93,152.88,19.5102]
[1718188764864,2.4195,152.93,152.9,2.4198]
[1718188765156,2.4195,152.92,152.89,2.4199]
[1718188765461,2.4195,152.92,152.88,2.42]
[1718188765753,2.4195,152.92,152.89,2.42]
[1718188766940,2.4194,152.93,152.9,2.4198]
[1718188767251,10.6494,152.93,152.9,2.4198]
[1718188767755,8.23,152.93,152.91,2.4196]
[1718188770445,8.23,152.93,152.89,4.84]
[1718188770653,8.23,152.93,152.91,2.4197]
[1718188770959,2.4193,152.94,152.91,2.4197]
[1718188771158,8.23,152.95,152.93,2.4194]
[1718188773367,2.419,152.96,152.93,2.4194]
[1718188773572,10.649,152.96,152.93,2.4194]
[1718188774070,2.419,152.96,152.93,2.4194]
[1718188774268,10.649,152.96,152.93,2.4194]
[1718188776970,0.17,152.95,152.89,21.0426]
[1718188777177,2.4194,152.93,152.9,2.4198]
[1718188778059,2.4194,152.93,152.91,2.4197]
[1718188778571,2.4194,152.93,152.9,2.4197]
[1718188780968,2.4194,152.93,152.91,2.4197]
[1718188781268,10.6493,152.94,152.91,2.4197]
[1718188781465,2.4194,152.93,152.91,2.4197]
[1718188781844,10.6493,152.94,152.91,2.4197]
[1718188784559,10.8194,152.93,152.9,2.4198]
[1718188784874,8.23,152.92,152.91,2.4197]
[1718188785355,8.23,152.93,152.91,2.4197]
[1718188785752,8.23,152.93,152.89,4.84]
[1718188786064,8.23,152.93,152.91,2.4196]
[1718188787557,8.23,152.92,152.91,2.4196]
[1718188787760,8.23,152.92,152.9,2.4197]
[1718188787964,10.6494,152.93,152.9,2.4197]
[1718188791968,8.23,152.92,152.9,2.4197]
[1718188794573,8.23,152.92,152.87,4.8407]
[1718188794882,10.6496,152.92,152.89,2.42]
[1718188795263,2.4196,152.92,152.89,2.42]
[1718188795478,8.23,152.91,152.89,2.42]
[1718188797587,8.23,152.92,152.9,2.4198]
[1718188800196,10.6495,152.92,152.89,2.4199]
[1718188801271,2.4194,152.93,152.9,2.4198]
[1718188803270,2.4195,152.92,152.89,2.4199]
[1718188807490,0.17,152.93,152.86,4.8407]
[1718188807682,10.6499,152.9,152.87,2.4203]
[1718188807877,10.6499,152.9,152.86,4.8407]
[1718188808093,10.6499,152.9,152.88,2.4201]
[1718188808271,8.23,152.9,152.88,2.4201]
[1718188809588,8.23,152.89,152.87,2.4203]
[1718188809978,8.23,152.88,152.87,2.4203]
[1718188810177,8.23,152.88,152.86,2.4204]
[1718188810906,10.6504,152.87,152.84,2.4208]
[1718188811097,4.8404,152.88,152.81,25.1786]
[1718188811098,10.6505,152.86,152.83,2.4209]
[1718188811298,8.23,152.86,152.84,2.4208]
[1718188811600,8.23,152.86,152.84,2.4207]
[1718188811983,2.4202,152.88,152.84,2.4207]
[1718188812190,8.23,152.86,152.84,2.4207]
[1718188813406,8.23,152.86,152.85,2.4206]
[1718188816382,8.23,152.87,152.85,2.4206]
[1718188816998,2.4202,152.88,152.85,2.4206]
[1718188817186,8.23,152.87,152.86,2.4205]
[1718188817801,8.23,152.87,152.83,12.1048]
[1718188818112,8.23,152.87,152.86,2.4205]
[1718188818294,10.6504,152.87,152.84,2.4207]
[1718188819598,10.6504,152.87,152.83,2.4208]
[1718188820286,10.6504,152.87,152.84,2.4207]
[1718188820983,8.23,152.86,152.84,2.4207]
[1718188824701,8.23,152.86,152.82,2.421]
[1718188824702,2.4207,152.85,152.82,2.421]
[1718188825003,10.6507,152.85,152.82,2.421]
[1718188825404,8.23,152.85,152.82,2.421]
[1718188825711,8.23,152.86,152.85,2.4205]
[1718188825901,2.4204,152.87,152.84,2.4207]
[1718188826106,8.23,152.86,152.84,2.4207]
[1718188827793,8.23,152.85,152.8,44.0702]
[1718188827993,8.23,152.85,152.81,12.1063]
[1718188828306,8.23,152.85,152.83,2.4209]
[1718188829791,10.6507,152.85,152.82,2.421]
[1718188830192,8.23,152.85,152.82,2.421]
[1718188830430,10.6506,152.85,152.82,2.421]
[1718188830714,8.23,152.85,152.83,2.4209]
[1718188831213,8.23,152.85,152.82,2.421]
[1718188832609,8.23,152.85,152.83,2.4209]
[1718188833112,8.23,152.85,152.84,2.4208]
[1718188833291,8.23,152.86,152.84,2.4208]
[1718188833693,10.6505,152.86,152.83,2.4208]
[1718188834426,2.4205,152.86,152.83,2.4208]
[1718188834612,10.6507,152.85,152.8,25.9]
[1718188834925,10.6507,152.85,152.82,2.421]
[1718188835231,8.23,152.85,152.83,2.4209]
[1718188835414,10.6505,152.86,152.83,2.4209]
[1718188837826,2.4206,152.85,152.82,2.421]
[1718188838003,10.6506,152.85,152.82,2.421]
[1718188838529,8.23,152.84,152.82,2.421]
[1718188842627,8.23,152.85,152.83,2.4208]
[1718188842940,0.17,152.88,152.81,8.23]
[1718188843128,8.23,152.88,152.86,2.4204]
[1718188843313,8.23,152.88,152.87,2.4203]
[1718188843625,12.0978,152.92,152.87,2.4203]
[1718188843824,12.0978,152.92,152.86,2.4204]
[1718188844030,8.23,152.88,152.86,2.4204]
[1718188844322,2.4199,152.9,152.86,2.4204]
[1718188844522,8.23,152.88,152.84,4.8415]
[1718188844702,8.23,152.88,152.85,2.4206]
[1718188846105,2.4202,152.88,152.85,2.4206]
[1718188846307,10.6502,152.88,152.85,2.4206]
[1718188848227,8.23,152.88,152.84,2.4206]
[1718188848426,10.6502,152.88,152.84,2.4206]
[1718188848734,10.6502,152.88,152.85,2.4206]
[1718188849327,8.23,152.89,152.85,2.4206]
[1718188849527,2.4202,152.88,152.83,13.0718]
[1718188849830,2.4202,152.88,152.85,2.4206]
[1718188850041,2.4201,152.89,152.85,2.4206]
[1718188850405,2.4202,152.88,152.85,2.4206]
[1718188852026,10.6502,152.88,152.85,2.4206]
[1718188853745,2.5898,152.91,152.87,2.4202]
[1718188854028,4.8393,152.92,152.85,4.8412]
[1718188854029,2.4196,152.92,152.89,2.42]
[1718188854341,8.23,152.9,152.89,2.4199]
[1718188855035,2.4195,152.92,152.89,2.4199]
[1718188855256,2.4194,152.93,152.9,2.4197]
[1718188855543,8.23,152.91,152.9,2.4197]
[1718188856421,2.4193,152.94,152.9,2.4197]
[1718188856629,8.23,152.92,152.91,2.4197]
[1718188857433,8.23,152.94,152.9,4.8395]
[1718188857750,2.4188,152.97,152.93,2.4194]
[1718188858043,8.23,152.96,152.92,9.6779]
[1718188858411,8.23,152.97,152.95,2.4189]
[1718188858714,8.23,152.97,152.96,2.4189]
[1718188858925,8.23,152.97,152.95,2.4189]
[1718188859813,2.4187,152.97,152.93,2.4193]
[1718188860131,2.4188,152.97,152.94,2.4192]
[1718188860336,8.23,152.95,152.93,2.4193]
[1718188860533,2.4188,152.97,152.94,2.4192]
[1718188860717,8.23,152.95,152.94,2.4192]
[1718188861139,8.23,152.95,152.93,2.4193]
[1718188861345,8.23,152.95,152.94,2.4191]
[1718188861717,8.23,152.95,152.9,25.9288]
[1718188861718,8.23,152.95,152.93,2.4193]
[1718188862035,8.23,152.94,152.93,2.4193]
[1718188862425,2.5888,152.97,152.93,2.4193]
[1718188862721,0.17,152.97,152.94,2.4192]
[1718188862933,8.23,152.95,152.94,2.4192]
[1718188863321,2.4183,153.0,152.96,2.4188]
[1718188863516,2.4183,153.0,152.97,2.4187]
[1718188863728,2.4179,153.03,152.97,4.8374]
[1718188863936,2.4179,153.03,153.0,2.4182]
[1718188864119,8.23,153.01,153.0,2.4182]
[1718188864436,8.23,153.01,152.97,12.0936]
[1718188864437,8.23,153.01,152.99,2.4183]
[1718188864732,2.4179,153.02,152.95,4.838]
[1718188864733,8.23,153.0,152.95,4.838]
[1718188864940,8.23,152.97,152.96,2.4188]
[1718188865923,8.23,152.98,152.96,2.4188]
[1718188866239,8.23,152.98,152.97,2.4187]
[1718188867217,0.17,153.0,152.97,2.4187]
[1718188867418,0.51,153.0,152.97,2.4187]
[1718188867613,8.23,152.98,152.97,2.4187]
[1718188868243,0.51,153.0,152.98,2.4185]
[1718188868541,2.4182,153.01,152.95,12.0953]
[1718188868542,2.418,153.02,152.99,2.4184]
[1718188868739,8.23,153.0,152.99,2.4184]
[1718188868940,0.17,152.93,152.87,4.8404]
[1718188869142,9.6757,152.96,152.89,2.4199]
[1718188869143,8.23,152.91,152.89,2.4199]
[1718188869442,2.5887,152.98,152.88,8.23]
[1718188869633,8.23,152.95,152.94,2.4192]
[1718188869935,8.23,152.95,152.92,21.7757]
[1718188870126,8.23,152.95,152.94,2.4192]
[1718188870329,2.5885,152.99,152.93,4.8388]
[1718188870330,8.23,152.96,152.95,2.4189]
[1718188871936,260.618,153.02,152.98,2.4185]
[1718188872125,8.23,152.99,152.98,2.4185]
[1718188872440,2.418,153.02,152.98,2.4185]
[1718188872748,8.23,153.0,152.98,2.4185]
[1718188873044,8.23,153.0,152.97,2.4186]
[1718188873225,2.4181,153.01,152.98,2.4186]
[1718188873431,8.23,153.0,152.98,2.4186]
[1718188873735,2.4179,153.02,152.99,2.4184]
[1718188873952,8.23,153.0,152.98,2.4185]
[1718188874132,8.23,153.0,152.99,2.4184]
[1718188874440,57.1218,153.04,152.99,2.4184]
[1718188874643,2.4178,153.03,152.99,2.4183]
[1718188874824,8.23,153.01,152.99,2.4183]
[1718188875644,2.4183,153.0,152.96,2.4188]
[1718188875943,8.23,152.97,152.95,2.419]
[1718188876159,8.23,152.96,152.92,15.8503]
[1718188876450,8.23,152.94,152.92,15.8503]
[1718188876815,8.23,152.94,152.92,18.2697]
[1718188877342,8.23,152.94,152.93,2.4194]
[1718188877542,8.23,152.94,152.89,15.5979]
[1718188877730,8.23,152.92,152.9,2.4198]
[1718188878746,8.23,152.92,152.91,2.4197]
[1718188879623,8.23,152.92,152.9,2.4198]
[1718188880350,2.4187,152.97,152.93,2.4193]
[1718188880537,8.23,152.94,152.93,2.4193]
[1718188880739,8.23,152.94,152.92,2.4194]
[1718188881243,8.23,152.93,152.92,2.4194]
[1718188881623,8.23,152.93,152.9,2.4197]